bitfinex/quotes_BTCUSD_20240718
["timestamp","ask_amount","ask_price","bid_price","bid_amount"]
[1721308700351,0.00836,65136.0,65135.0,3.58436305]
[1721308700571,0.00836,65136.0,65135.0,3.97465163]
[1721308700841,0.00836,65136.0,65135.0,3.92465163]
[1721308701059,0.00836,65136.0,65135.0,3.92464618]
[1721308701286,0.00836,65136.0,65135.0,3.51604387]
[1721308701517,0.00836,65136.0,65135.0,3.56158527]
[1721308702437,0.00836,65136.0,65135.0,2.03433208]
[1721308703123,0.00836,65136.0,65135.0,2.03712608]
[1721308703361,0.00836,65136.0,65135.0,2.08712608]
[1721308703815,0.00836,65136.0,65135.0,2.06883787]
[1721308704338,0.00836,65136.0,65135.0,2.06883878]
[1721308705878,0.00836,65136.0,65135.0,2.01883878]
[1721308706998,0.00836,65136.0,65135.0,2.03434517]
[1721308707235,0.00836,65136.0,65135.0,1.55855607]
[1721308707503,0.00836,65136.0,65135.0,1.68599568]
[1721308707726,0.00836,65136.0,65135.0,1.70429772]
[1721308708175,0.00836,65136.0,65135.0,1.68599568]
[1721308708424,0.00836,65136.0,65135.0,1.99304968]
[1721308709127,0.00836,65136.0,65135.0,2.01604968]
[1721308710257,0.00836,65136.0,65135.0,2.20984968]
[1721308710476,0.00836,65136.0,65135.0,2.20984498]
[1721308710832,0.00836,65136.0,65135.0,3.58241007]
[1721308711043,0.00836,65136.0,65135.0,3.70984484]
[1721308711473,0.00836,65136.0,65135.0,3.6598446]
[1721308711691,0.00836,65136.0,65135.0,3.7098446]
[1721308711902,0.00836,65136.0,65135.0,3.72356186]
[1721308712112,0.00836,65136.0,65135.0,3.90236954]
[1721308713624,0.00836,65136.0,65135.0,3.90265193]
[1721308713828,0.00836,65136.0,65135.0,3.95265193]
[1721308714227,0.00836,65136.0,65135.0,4.71265193]
[1721308714587,0.00836,65136.0,65135.0,4.91750827]
[1721308714801,0.00836,65136.0,65135.0,4.87193942]
[1721308715240,1.58e-06,65136.0,65135.0,5.37899342]
[1721308715467,0.00836,65139.0,65138.0,1.49398]
[1721308715675,0.00836,65139.0,65138.0,3.55085364]
[1721308715888,0.00836,65139.0,65138.0,3.55407267]
[1721308716093,0.00836,65139.0,65138.0,5.14516377]
[1721308716302,0.00836,65139.0,65138.0,5.36111267]
[1721308716758,0.00836,65139.0,65138.0,5.06987081]
[1721308716954,0.00836,65139.0,65138.0,5.53047961]
[1721308717357,0.00836,65139.0,65138.0,5.43938478]
[1721308718225,0.00836,65139.0,65138.0,5.45338478]
[1721308718432,0.00836,65139.0,65138.0,5.45338848]
[1721308718653,0.00836,65139.0,65138.0,4.72338848]
[1721308719092,0.00836,65139.0,65138.0,5.47338848]
[1721308719737,0.00836,65139.0,65138.0,5.48738848]
[1721308719950,0.00836,65139.0,65138.0,5.0834465]
[1721308720198,0.00836,65139.0,65138.0,5.48738576]
[1721308720429,0.00836,65139.0,65138.0,4.84131524]
[1721308720645,0.00836,65139.0,65138.0,5.57835996]
[1721308721066,0.00836,65139.0,65138.0,5.57827964]
[1721308723233,0.00836,65139.0,65138.0,5.48712507]
[1721308723692,0.00836,65139.0,65138.0,4.82819126]
[1721308723917,0.00836,65139.0,65138.0,2.58985416]
[1721308724576,0.00836,65139.0,65138.0,2.93010899]
[1721308724787,0.00836,65139.0,65138.0,2.58985416]
[1721308725222,0.00836,65139.0,65138.0,2.9299269]
[1721308725434,0.00836,65139.0,65138.0,2.99824043]
[1721308725918,0.00836,65139.0,65138.0,2.0817631]
[1721308726142,0.00836,65139.0,65138.0,1.729345]
[1721308726404,0.00836,65139.0,65138.0,1.48767334]
[1721308728036,0.00836,65139.0,65138.0,1.51067334]
[1721308729411,0.00836,65139.0,65138.0,1.51068139]
[1721308729947,0.00836,65139.0,65138.0,1.38324077]
[1721308730169,0.15086,65139.0,65138.0,0.15865953]
[1721308731101,0.15086,65139.0,65138.0,0.13065953]
[1721308731330,0.15086,65139.0,65138.0,0.29817953]
[1721308731588,0.15086,65139.0,65138.0,0.31217953]
[1721308731822,0.15086,65139.0,65138.0,0.91225953]
[1721308732273,0.15086,65139.0,65138.0,1.68072127]
[1721308732593,0.15086,65139.0,65138.0,1.78072681]
[1721308732594,0.00836,65139.0,65138.0,1.78072681]
[1721308732809,0.00836,65139.0,65138.0,1.80372681]
[1721308733366,0.00836,65139.0,65138.0,1.78972681]
[1721308733796,0.01036,65139.0,65138.0,1.78972681]
[1721308734006,0.00836,65139.0,65138.0,1.78972681]
[1721308734231,0.00836,65139.0,65138.0,1.79172681]
[1721308734631,0.00836,65139.0,65138.0,1.80572681]
[1721308735004,0.00836,65139.0,65138.0,1.80372681]
[1721308735590,0.00836,65139.0,65138.0,1.80372256]
[1721308735798,0.00836,65139.0,65138.0,1.81772256]
[1721308737617,0.00836,65139.0,65138.0,1.48768256]
[1721308737618,0.14926,65139.0,65138.0,1.48768256]
[1721308737848,0.14926,65139.0,65138.0,0.71922082]
[1721308738108,0.14926,65139.0,65138.0,1.02626082]
[1721308738364,0.14926,65139.0,65138.0,0.25866082]
[1721308738590,0.14926,65139.0,65138.0,0.25866487]
[1721308739016,0.14926,65139.0,65138.0,0.13121903]
[1721308739222,0.14926,65139.0,65138.0,0.15866578]
[1721308739436,0.14926,65139.0,65138.0,0.25866578]
[1721308739866,0.14926,65139.0,65138.0,0.41218578]
[1721308740119,0.14926,65139.0,65138.0,0.71922578]
[1721308740715,0.14926,65139.0,65138.0,1.51068752]
[1721308741150,0.14926,65139.0,65138.0,1.38324077]
[1721308741387,0.14926,65139.0,65138.0,1.51068613]
[1721308741853,0.14926,65139.0,65138.0,1.20364613]
[1721308742927,0.14926,65139.0,65138.0,0.41218428]
[1721308743146,0.14926,65139.0,65138.0,0.15866428]
[1721308743589,0.14926,65139.0,65138.0,0.15967679]
[1721308743590,0.609812,65139.0,65138.0,0.15967679]
[1721308743804,0.482477,65139.0,65138.0,0.15967679]
[1721308744013,0.32896,65139.0,65138.0,0.15544525]
[1721308744222,0.32896,65139.0,65138.0,0.15545421]
[1721308744455,0.32896,65139.0,65138.0,0.15545389]
[1721308744907,0.32896,65139.0,65138.0,0.14145389]
[1721308745413,0.14926,65139.0,65138.0,0.14145389]
[1721308745630,0.14926,65139.0,65138.0,0.14845389]
[1721308746069,0.14926,65139.0,65138.0,0.13445389]
[1721308746285,0.14926,65139.0,65138.0,0.28797389]
[1721308746501,0.14926,65139.0,65138.0,0.59501389]
[1721308747134,0.14926,65139.0,65138.0,0.60300769]
[1721308747353,0.14926,65139.0,65138.0,0.6030076]
[1721308747822,0.14926,65139.0,65138.0,0.9100476]
[1721308748259,0.14926,65139.0,65138.0,0.6030076]
[1721308748486,0.14926,65139.0,65138.0,0.60300759]
[1721308748699,0.14926,65139.0,65138.0,0.91004759]
[1721308748910,0.00836,65139.0,65138.0,1.18742933]
[1721308749173,0.00836,65139.0,65138.0,1.49446933]
[1721308750461,0.00836,65139.0,65138.0,1.36702174]
[1721308750687,0.00836,65139.0,65138.0,1.49446502]
[1721308753749,0.00836,65139.0,65138.0,1.69446483]
[1721308754220,0.00836,65139.0,65138.0,1.71278746]
[1721308754654,0.00836,65139.0,65138.0,2.01982746]
[1721308755078,0.00836,65139.0,65138.0,2.00150483]
[1721308755580,0.00836,65139.0,65138.0,1.69446483]
[1721308755814,0.00836,65139.0,65138.0,1.71278719]
[1721308756270,0.00836,65139.0,65138.0,1.69446372]
[1721308756477,0.00836,65139.0,65138.0,2.00150372]
[1721308756693,0.00836,65139.0,65138.0,2.00150403]
[1721308756911,0.00836,65139.0,65138.0,1.87406174]
[1721308757169,0.00836,65139.0,65138.0,2.06560365]
[1721308757408,0.00836,65139.0,65138.0,2.06982487]
[1721308757617,0.00836,65139.0,65138.0,2.06982412]
[1721308757852,0.00836,65139.0,65138.0,2.24669985]
[1721308758081,0.00836,65139.0,65138.0,2.06982445]
[1721308758289,0.00836,65139.0,65138.0,2.24669586]
[1721308758511,0.00836,65139.0,65138.0,2.06982445]
[1721308758718,0.00836,65139.0,65138.0,2.24669586]
[1721308758939,0.00836,65139.0,65138.0,2.06982445]
[1721308759153,0.00836,65139.0,65138.0,2.29669586]
[1721308759402,0.00836,65139.0,65138.0,2.06982445]
[1721308759628,0.00836,65139.0,65138.0,2.24664386]
[1721308759839,0.00836,65139.0,65138.0,2.06982428]
[1721308760044,0.00836,65139.0,65138.0,1.87550386]
[1721308760279,0.00836,65139.0,65138.0,1.87550093]
[1721308760516,0.00836,65139.0,65138.0,1.69868456]
[1721308760762,0.00836,65139.0,65138.0,1.87550093]
[1721308760763,0.08466,65139.0,65138.0,1.87550093]
[1721308761007,0.08466,65139.0,65138.0,0.70722282]
[1721308761217,0.08466,65139.0,65138.0,1.03258392]
[1721308761456,0.08466,65139.0,65138.0,0.72554392]
[1721308761681,0.08466,65139.0,65138.0,1.03258392]
[1721308763314,0.08466,65139.0,65138.0,0.01922122]
[1721308763537,0.14796,65139.0,65138.0,0.14666538]
[1721308766356,0.14796,65139.0,65138.0,0.01922122]
[1721308766581,0.14796,65139.0,65138.0,0.14666986]
[1721308767019,0.14796,65139.0,65138.0,0.14666988]
[1721308768579,0.14796,65139.0,65138.0,0.91426988]
[1721308768837,0.14796,65139.0,65138.0,1.22130988]
[1721308768838,0.00836,65139.0,65138.0,1.22130988]
[1721308769763,0.00836,65139.0,65138.0,1.2213081]
[1721308770673,0.00836,65139.0,65138.0,0.6072281]
[1721308770967,0.00836,65139.0,65138.0,0.9142681]
[1721308771201,0.00836,65139.0,65138.0,1.2213081]
[1721308771885,0.00836,65139.0,65138.0,1.51702374]
[1721308772120,0.00836,65139.0,65138.0,1.72387766]
[1721308772337,0.00836,65139.0,65138.0,1.54441472]
[1721308772841,0.00836,65139.0,65138.0,1.90248609]
[1721308773070,0.00836,65139.0,65138.0,1.72347902]
[1721308773531,0.00836,65139.0,65138.0,1.6776932]
[1721308774913,0.00836,65139.0,65138.0,1.9847332]
[1721308775820,0.00836,65139.0,65138.0,1.67828296]
[1721308776091,0.00836,65139.0,65138.0,1.98492742]
[1721308776320,0.00836,65139.0,65138.0,1.98493134]
[1721308776543,0.00836,65139.0,65138.0,1.67789134]
[1721308776986,0.00836,65139.0,65138.0,1.67804494]
[1721308777435,0.00836,65139.0,65138.0,1.98508494]
[1721308779250,0.00836,65139.0,65138.0,1.98476016]
[1721308779929,0.00836,65139.0,65138.0,2.51716666]
[1721308780152,0.00836,65139.0,65138.0,2.79095764]
[1721308780374,0.00836,65139.0,65138.0,3.27769764]
[1721308780825,0.00836,65139.0,65138.0,5.3351872]
[1721308781287,0.00836,65139.0,65138.0,5.46364951]
[1721308781505,0.00836,65139.0,65138.0,5.45664951]
[1721308781989,0.00836,65139.0,65138.0,5.47064951]
[1721308782214,0.00836,65139.0,65138.0,5.3553755]
[1721308782430,0.00836,65139.0,65138.0,5.3693755]
[1721308782672,0.00836,65139.0,65138.0,5.48382575]
[1721308783112,0.00836,65139.0,65138.0,5.46982575]
[1721308783330,0.00836,65139.0,65138.0,5.46932457]
[1721308783999,0.00836,65139.0,65138.0,5.36887432]
[1721308784477,0.00836,65139.0,65138.0,5.67591432]
[1721308784704,0.00836,65139.0,65138.0,5.34087432]
[1721308784933,0.00836,65139.0,65138.0,5.4694341]
[1721308785385,0.00836,65139.0,65138.0,5.4694587]
[1721308785829,0.00836,65139.0,65138.0,5.46972638]
[1721308786048,0.00836,65139.0,65138.0,5.48372638]
[1721308786545,1e-08,65139.0,65138.0,5.36928455]
[1721308788420,1e-08,65139.0,65138.0,4.7234035]
[1721308788636,1e-08,65139.0,65138.0,5.37013062]
[1721308789313,1e-08,65139.0,65138.0,5.37015426]
[1721308789976,1e-08,65139.0,65138.0,5.67719426]
[1721308790192,1e-08,65139.0,65138.0,5.37015426]
[1721308790412,1e-08,65139.0,65138.0,5.50724925]
[1721308791303,1e-08,65139.0,65138.0,5.37015426]
[1721308791526,1e-08,65139.0,65138.0,4.7234035]
[1721308791777,1e-08,65139.0,65138.0,5.50731349]
[1721308792481,1e-08,65139.0,65138.0,5.81435349]
[1721308792728,1e-08,65139.0,65138.0,6.31435349]
[1721308792945,1e-08,65139.0,65138.0,6.17727156]
[1721308793403,1e-08,65139.0,65138.0,6.31430896]
[1721308794143,1e-08,65139.0,65138.0,6.31430355]
[1721308794390,1e-08,65139.0,65138.0,6.3142687]
[1721308794611,1e-08,65139.0,65138.0,5.83705835]
[1721308794832,1e-08,65139.0,65138.0,6.3142698]
[1721308795237,1e-08,65139.0,65138.0,6.31510724]
[1721308795499,1e-08,65139.0,65138.0,6.17810685]
[1721308796852,1e-08,65139.0,65138.0,5.87106685]
[1721308797949,1e-08,65139.0,65138.0,5.8717588]
[1721308800185,1e-08,65139.0,65138.0,6.0717588]
[1721308800861,1e-08,65139.0,65138.0,6.07180815]
[1721308801519,0.00836,65145.0,65138.0,6.07180815]
[1721308801729,0.00836,65145.0,65144.0,1.73593574]
[1721308801962,0.00836,65145.0,65144.0,2.38434039]
[1721308802242,0.00836,65145.0,65144.0,4.01150598]
[1721308803178,0.00836,65145.0,65144.0,3.36310133]
[1721308803403,0.00836,65145.0,65144.0,4.01161657]
[1721308803629,0.00836,65145.0,65144.0,3.55015692]
[1721308803856,0.00836,65145.0,65144.0,3.50451442]
[1721308804109,0.00836,65145.0,65144.0,1.36749379]
[1721308804110,0.14926,65145.0,65144.0,1.36749379]
[1721308804341,0.14926,65145.0,65144.0,1.3633282]
[1721308804592,0.14926,65145.0,65144.0,0.60193446]
[1721308805042,0.14926,65145.0,65144.0,0.90894646]
[1721308806194,0.14926,65145.0,65144.0,1.00894646]
[1721308806452,0.14926,65145.0,65144.0,0.70193446]
[1721308806860,0.14926,65145.0,65144.0,0.70196325]
[1721308806866,0.14926,65145.0,65144.0,0.71596325]
[1721308807818,0.14926,65145.0,65144.0,0.40895125]
[1721308808064,0.14926,65145.0,65144.0,0.25544525]
[1721308808286,0.14926,65145.0,65144.0,0.128]
[1721308808516,0.14926,65145.0,65144.0,0.028]
[1721308809231,0.14926,65145.0,65144.0,0.014]
[1721308809652,0.14926,65145.0,65144.0,0.028]
[1721308809933,0.14926,65145.0,65144.0,0.014]
[1721308810167,0.14926,65145.0,65144.0,0.028]
[1721308812674,0.302763,65145.0,65144.0,0.028]
[1721308812896,0.60977,65145.0,65144.0,0.028]
[1721308813842,1.07115874,65145.0,65144.0,0.028]
[1721308814090,1.07115874,65145.0,65136.0,0.000913]
[1721308814091,0.601567,65137.0,65136.0,0.000913]
[1721308814339,0.908612,65137.0,65136.0,0.000913]
[1721308815507,1.37003874,65137.0,65136.0,0.000913]
[1721308815734,1.52438831,65137.0,65136.0,0.000913]
[1721308816209,1.52438831,65137.0,65136.0,0.004913]
[1721308816873,1.53838831,65137.0,65136.0,0.005913]
[1721308817114,1.54638831,65137.0,65136.0,0.006913]
[1721308817624,1.08499374,65137.0,65136.0,0.006913]
[1721308817836,0.155,65137.0,65136.0,0.005913]
[1721308818286,0.167,65137.0,65136.0,0.006913]
[1721308818728,0.167,65137.0,65136.0,0.001913]
[1721308818729,0.153,65137.0,65136.0,0.001913]
[1721308819186,0.167,65137.0,65136.0,0.002913]
[1721308819656,0.0922,65137.0,65136.0,0.769535]
[1721308819877,0.02,65137.0,65136.0,0.770535]
[1721308820105,0.012,65137.0,65136.0,0.462486]
[1721308820336,0.012,65137.0,65136.0,0.001913]
[1721308820566,0.016,65137.0,65136.0,0.001913]
[1721308820807,0.012,65137.0,65136.0,0.001913]
[1721308822380,0.012,65137.0,65136.0,0.000913]
[1721308822830,0.013,65137.0,65136.0,0.000913]
[1721308823285,0.012,65137.0,65136.0,0.000913]
[1721308823509,0.013,65137.0,65136.0,0.000913]
[1721308824209,0.015,65137.0,65136.0,0.000913]
[1721308824705,0.013,65137.0,65136.0,0.000913]
[1721308825403,0.013,65137.0,65136.0,0.154437]
[1721308825621,0.013,65137.0,65136.0,0.000913]
[1721308825838,0.0769,65141.0,65136.0,0.000913]
[1721308826291,0.0769,65141.0,65136.0,0.002913]
[1721308826514,0.0769,65141.0,65136.0,0.156437]
[1721308826750,0.0769,65141.0,65136.0,0.002913]
[1721308826974,0.001,65137.0,65136.0,0.000913]
[1721308827429,0.001,65137.0,65136.0,0.461486]
[1721308827651,0.001,65137.0,65136.0,0.154437]
[1721308827889,0.001,65137.0,65136.0,0.155437]
[1721308828381,0.0879,65141.0,65137.0,0.307044]
[1721308828632,0.0879,65141.0,65139.0,0.153516]
[1721308828882,0.0839,65141.0,65139.0,0.153516]
[1721308830071,0.0839,65141.0,65136.0,0.003913]
[1721308830294,0.0769,65141.0,65136.0,0.002913]
[1721308830744,0.0859,65141.0,65137.0,0.001]
[1721308831647,0.0919,65141.0,65137.0,0.001]
[1721308831866,0.0799,65141.0,65138.0,0.00686752]
[1721308832400,0.0799,65141.0,65136.0,0.000913]
[1721308832631,0.0799,65141.0,65139.0,0.00689334]
[1721308832854,0.0799,65141.0,65136.0,0.000913]
[1721308833079,0.0799,65141.0,65140.0,0.00689109]
[1721308833304,0.0799,65141.0,65136.0,0.000913]
[1721308833531,0.0799,65141.0,65137.0,0.00689784]
[1721308833758,0.0799,65141.0,65136.0,0.000913]
[1721308834295,0.0799,65141.0,65137.0,0.00689784]
[1721308834533,0.0829,65141.0,65137.0,0.00689784]
[1721308835000,0.0889,65141.0,65138.0,0.001]
[1721308835458,0.0889,65141.0,65139.0,0.00689334]
[1721308835684,0.1382464,65141.0,65139.0,0.00689334]
[1721308835909,0.1352464,65141.0,65139.0,0.00689334]
[1721308836344,0.1352464,65141.0,65138.0,0.001]
[1721308836574,0.1352464,65141.0,65139.0,0.000924]
[1721308837022,0.291815,65140.0,65139.0,0.000924]
[1721308837247,1.01364039,65140.0,65139.0,0.000924]
[1721308837997,0.1383,65140.0,65139.0,0.000924]
[1721308839141,0.00084,65144.0,65140.0,0.153515]
[1721308839368,0.00084,65144.0,65141.0,0.12746652]
[1721308839593,0.00084,65144.0,65142.0,0.12746652]
[1721308839818,0.00084,65144.0,65143.0,0.12746652]
[1721308840068,0.00084,65144.0,65143.0,0.13435642]
[1721308840766,0.00784,65144.0,65143.0,0.13435642]
[1721308841007,0.01784,65144.0,65143.0,0.0068899]
[1721308841467,0.153512,65142.0,65140.0,0.001]
[1721308841950,0.0619,65143.0,65140.0,0.001]
[1721308842409,0.0619,65143.0,65141.0,0.0068944]
[1721308842645,0.0619,65143.0,65139.0,0.000924]
[1721308842874,0.0619,65143.0,65140.0,0.12746444]
[1721308843090,0.0619,65143.0,65140.0,0.00689665]
[1721308843779,0.0619,65143.0,65139.0,0.000924]
[1721308844007,0.0669,65143.0,65139.0,0.000924]
[1721308844231,0.007,65142.0,65140.0,0.001]
[1721308844461,0.0619,65143.0,65139.0,0.000924]
[1721308844683,0.0619,65143.0,65140.0,0.001]
[1721308844684,0.0699,65143.0,65140.0,0.001]
[1721308844911,0.13010576,65143.0,65140.0,0.001]
[1721308845187,0.0619,65143.0,65139.0,0.000924]
[1721308845383,0.0699,65143.0,65139.0,0.001924]
[1721308845849,0.0619,65143.0,65139.0,0.000924]
[1721308846075,0.0749,65143.0,65140.0,0.001]
[1721308846532,0.0699,65143.0,65140.0,0.001]
[1721308846976,0.228409,65143.0,65141.0,0.00689695]
[1721308847225,0.228409,65143.0,65140.0,0.001]
[1721308847446,0.223409,65143.0,65141.0,0.12746804]
[1721308847725,0.223409,65143.0,65140.0,0.001]
[1721308847726,0.153513,65141.0,65140.0,0.001]
[1721308848168,0.153513,65141.0,65139.0,0.000924]
[1721308848405,0.153515,65140.0,65139.0,0.000924]
[1721308848630,0.153515,65140.0,65139.0,0.001924]
[1721308849535,0.153515,65140.0,65139.0,0.12839594]
[1721308849766,0.153515,65140.0,65139.0,0.000924]
[1721308849767,0.767577,65140.0,65139.0,0.000924]
[1721308849993,1.3492465,65140.0,65139.0,0.000924]
[1721308850460,1.39521537,65140.0,65139.0,0.000924]
[1721308850691,1.86065924,65140.0,65139.0,0.000924]
[1721308850926,2.09596414,65140.0,65139.0,0.000924]
[1721308853275,2.04596414,65140.0,65139.0,0.000924]
[1721308853470,2.09614208,65140.0,65139.0,0.000924]
[1721308853953,2.1610692,65140.0,65139.0,0.000924]
[1721308854178,1.6578023,65140.0,65139.0,0.000924]
[1721308854402,1.56586272,65140.0,65139.0,0.000924]
[1721308854869,1.65779519,65140.0,65139.0,0.000924]
[1721308855081,1.56586272,65140.0,65139.0,0.000924]
[1721308855364,1.87512307,65140.0,65139.0,0.000924]
[1721308855577,1.72021229,65140.0,65139.0,0.000924]
[1721308855788,1.77021229,65140.0,65139.0,0.000924]
[1721308856515,2.14215175,65140.0,65139.0,0.000924]
[1721308856751,2.2319203,65140.0,65139.0,0.000924]
[1721308856981,2.11701184,65140.0,65139.0,0.000924]
[1721308857663,1.56586272,65140.0,65139.0,0.000924]
[1721308857931,1.65776001,65140.0,65139.0,0.000924]
[1721308858178,1.60491256,65140.0,65139.0,0.000924]
[1721308858420,1.71977985,65140.0,65139.0,0.000924]
[1721308858656,1.51883001,65140.0,65139.0,0.000924]
[1721308858882,1.44287859,65140.0,65139.0,0.000924]
[1721308859108,1.44287924,65140.0,65139.0,0.000924]
[1721308859333,1.67318155,65140.0,65139.0,0.000924]
[1721308859561,1.55831229,65140.0,65139.0,0.000924]
[1721308860280,1.61792197,65140.0,65139.0,0.000924]
[1721308860525,1.37168974,65140.0,65139.0,0.000924]
[1721308861000,1.06465874,65140.0,65139.0,0.000924]
[1721308861465,0.910277,65140.0,65139.0,0.000924]
[1721308866656,0.849677,65140.0,65139.0,0.000924]
[1721308867345,0.007,65140.0,65139.0,0.000924]
[1721308867580,0.160515,65140.0,65139.0,0.000924]
[1721308869016,0.007,65140.0,65139.0,0.141924]
[1721308869477,0.007,65140.0,65139.0,0.14883539]
[1721308870184,0.160515,65140.0,65139.0,0.00783539]
[1721308870410,0.543046,65140.0,65139.0,0.00783539]
[1721308870685,0.543046,65140.0,65139.0,0.000924]
[1721308871138,0.58797937,65140.0,65139.0,0.000924]
[1721308871390,0.543046,65140.0,65139.0,0.000924]
[1721308871621,1.31148974,65140.0,65139.0,0.000924]
[1721308871907,1.31148974,65140.0,65117.0,0.46584271]
[1721308871908,0.153567,65118.0,65117.0,0.46584271]
[1721308872147,0.1446,65129.0,65117.0,0.46304871]
[1721308872148,0.1797,65120.0,65117.0,0.46304871]
[1721308872365,1.22935074,65118.0,65117.0,0.00696568]
[1721308872860,0.30717,65111.0,65101.0,0.002794]
[1721308873080,0.1797,65109.0,65100.0,0.063]
[1721308873312,0.1797,65109.0,65098.0,0.65064871]
[1721308873313,0.153599,65105.0,65102.0,0.00699994]
[1721308873546,0.46078,65107.0,65101.0,0.0070022]
[1721308873773,0.296491,65108.0,65098.0,0.1125]
[1721308874004,0.153591,65108.0,65098.0,0.1125]
[1721308874235,0.1797,65109.0,65101.0,0.001]
[1721308874459,0.01,65111.0,65102.0,0.1412]
[1721308874677,0.153577,65114.0,65102.0,0.14821992]
[1721308874927,0.153577,65114.0,65103.0,0.002794]
[1721308875157,0.153582,65112.0,65102.0,0.14821992]
[1721308875374,0.153582,65112.0,65104.0,0.00701542]
[1721308875604,0.1797,65109.0,65103.0,0.00981167]
[1721308875853,0.1797,65109.0,65102.0,0.1412]
[1721308875854,0.007,65105.0,65102.0,0.001]
[1721308876104,0.006,65107.0,65101.0,0.001]
[1721308876616,0.006,65107.0,65098.0,0.1125]
[1721308876617,0.05086671,65107.0,65102.0,0.001]
[1721308876859,0.05086671,65107.0,65099.0,0.002794]
[1721308877086,0.33329,65109.0,65102.0,0.001]
[1721308877087,0.007,65105.0,65102.0,0.001]
[1721308877557,0.007,65105.0,65103.0,0.0070186]
[1721308878055,0.009,65107.0,65104.0,0.001]
[1721308879281,0.009,65107.0,65105.0,0.00701414]
[1721308879282,0.0354282,65107.0,65105.0,0.00701414]
[1721308879504,0.333288,65109.0,65105.0,0.00701414]
[1721308879505,0.153591,65108.0,65105.0,0.00701414]
[1721308879735,0.153591,65108.0,65102.0,0.001]
[1721308879961,0.153591,65108.0,65099.0,0.002794]
[1721308879962,0.1797,65103.0,65099.0,0.002794]
[1721308880204,0.1797,65103.0,65098.0,0.1125]
[1721308880692,0.153605,65102.0,65099.0,0.002794]
[1721308880922,0.153605,65102.0,65098.0,0.1125]
[1721308881154,0.2498753,65102.0,65098.0,0.1125]
[1721308881405,0.1807,65103.0,65098.0,0.1125]
[1721308881632,0.334303,65103.0,65098.0,0.1125]
[1721308882565,0.153605,65102.0,65098.0,0.1125]
[1721308882811,0.23437159,65102.0,65098.0,0.1125]
[1721308885167,0.153608,65101.0,65098.0,0.1125]
[1721308885646,0.307219,65101.0,65098.0,0.1125]
[1721308885880,0.153612,65099.0,65098.0,0.1125]
[1721308886769,0.294212,65099.0,65098.0,0.1135]
[1721308887254,1.06304174,65099.0,65098.0,0.1135]
[1721308887480,1.42026574,65099.0,65098.0,0.1135]
[1721308887700,1.37026574,65099.0,65098.0,0.1125]
[1721308888158,1.37026574,65099.0,65098.0,0.1165]
[1721308888382,1.06304174,65099.0,65098.0,0.1165]
[1721308889084,1.21739131,65099.0,65098.0,0.1165]
[1721308891672,1.26739131,65099.0,65098.0,0.1165]
[1721308891906,1.26739131,65099.0,65091.0,7.7e-05]
[1721308891907,0.460885,65092.0,65091.0,7.7e-05]
[1721308892176,1.60118074,65092.0,65091.0,7.7e-05]
[1721308892421,1.55118074,65092.0,65091.0,7.7e-05]
[1721308892657,2.09323774,65092.0,65091.0,7.7e-05]
[1721308892901,0.97999,65088.0,65087.0,0.000863]
[1721308893127,1.39164774,65088.0,65087.0,0.000863]
[1721308894074,0.066,65079.0,65073.0,0.009185]
[1721308894318,0.153671,65074.0,65073.0,0.009185]
[1721308894545,0.333368,65075.0,65073.0,0.009185]
[1721308894797,0.153671,65074.0,65073.0,0.009185]
[1721308895286,0.1797,65075.0,65073.0,0.009185]
[1721308895512,0.30804374,65078.0,65073.0,0.009185]
[1721308895747,0.153668,65076.0,65073.0,0.009185]
[1721308895974,0.153669,65075.0,65073.0,0.009185]
[1721308896430,0.15438174,65076.0,65073.0,0.009185]
[1721308896911,0.30804974,65076.0,65073.0,0.009185]
[1721308897592,0.153669,65075.0,65073.0,0.009185]
[1721308898033,0.24123767,65074.0,65073.0,0.009185]
[1721308898748,0.1797,65074.0,65073.0,0.009185]
[1721308899243,0.307317,65080.0,65073.0,0.009185]
[1721308899244,0.1797,65080.0,65073.0,0.009185]
[1721308899473,0.307175,65110.0,65074.0,0.1422]
[1721308899474,0.1797,65086.0,65074.0,0.1422]
[1721308899712,0.48772574,65086.0,65075.0,0.153668]
[1721308899966,0.1797,65086.0,65076.0,0.153665]
[1721308900256,0.1797,65086.0,65077.0,0.153664]
[1721308900497,0.1797,65086.0,65077.0,0.00715579]
[1721308900741,0.064061,65085.0,65077.0,0.00715579]
[1721308901444,0.064061,65085.0,65074.0,0.1422]
[1721308901672,0.064061,65085.0,65078.0,0.00715353]
[1721308901891,0.064061,65085.0,65076.0,0.153666]
[1721308902152,0.21844274,65085.0,65079.0,0.00715128]
[1721308902408,0.21844274,65085.0,65074.0,0.1422]
[1721308902409,0.2252148,65084.0,65074.0,0.1422]
[1721308902635,0.0715678,65084.0,65075.0,0.153668]
[1721308902897,0.0715678,65084.0,65075.0,0.0071603]
[1721308903342,0.12379225,65083.0,65075.0,0.0071603]
[1721308904310,0.01,65085.0,65079.0,0.07717479]
[1721308904574,0.01,65085.0,65084.0,1.218832]
[1721308904826,0.01,65085.0,65084.0,1.6007939]
[1721308905077,0.00084,65099.0,65088.0,0.307273]
[1721308905287,0.00084,65099.0,65091.0,0.15363]
[1721308905508,0.00084,65099.0,65092.0,0.002794]
[1721308905736,0.00084,65099.0,65092.0,0.01003479]
[1721308905998,0.0162842,65099.0,65092.0,0.01003479]
[1721308906227,0.0162842,65099.0,65092.0,0.00724079]
[1721308906472,0.0162842,65099.0,65089.0,0.1433]
[1721308906473,0.00084,65099.0,65093.0,0.002794]
[1721308906696,0.00084,65099.0,65093.0,0.00723301]
[1721308906938,0.00084,65099.0,65092.0,0.153627]
[1721308907167,0.00084,65099.0,65094.0,0.00723076]
[1721308907405,0.00084,65099.0,65093.0,0.00723301]
[1721308907406,0.00684,65099.0,65093.0,0.00723301]
[1721308907651,0.00684,65099.0,65095.0,0.0072285]
[1721308907930,0.00084,65099.0,65094.0,0.00723076]
[1721308908157,0.00584,65099.0,65096.0,0.00722625]